fUSD/lending_fUSD_20260512
["ID","MTS","AMOUNT","RATE_DAILY","PERIOD"]
[422041530,1778524232000,-236.06278834,0.00019,2]
[422041526,1778524232000,-552.98,0.00018739,2]
[422041528,1778524232000,-214.82098671,0.00018899,2]
[422041534,1778524232000,-252.0,0.00019096,2]
[422041536,1778524232000,-8475.41891671,0.0001915,2]
[422041535,1778524232000,-13282.99314039,0.0001915,2]
[422041537,1778524232000,-189.30828275,0.0001915,2]
[422041538,1778524232000,-423.89492056,0.00019181,2]
[422041539,1778524232000,-1526.6994779,0.00019181,2]
[422041545,1778524232000,-500.0,0.00019237,2]
[422041540,1778524232000,-1716.0835923,0.00019181,2]
[422041543,1778524232000,-546.02,0.00019227,3]
[422041544,1778524232000,-389.65568623,0.00019237,2]
[422041542,1778524232000,-236.06278834,0.000192,2]
[422041532,1778524232000,-1680.0,0.00019015,2]
[422041581,1778524238000,-40.163634,0.00019237,2]
[422041582,1778524238000,-500.0,0.00019237,2]
[422041583,1778524238000,-500.0,0.00019237,2]
[422041586,1778524238000,-105.20288033,0.00019237,2]
[422041585,1778524238000,-500.0,0.00019237,2]
[422041584,1778524238000,-500.0,0.00019237,2]
[422041689,1778524240000,-500.0,0.00019237,2]
[422041672,1778524240000,-405.51086208,0.00019237,2]
[422041671,1778524240000,-394.79711967,0.00019237,2]
[422041673,1778524240000,-94.48913792,0.00019237,2]
[422041676,1778524240000,-500.0,0.00019237,2]
[422041675,1778524240000,-304.98913792,0.00019237,2]
[422041678,1778524240000,-500.0,0.00019237,2]
[422041677,1778524240000,-500.0,0.00019237,2]
[422041679,1778524240000,-500.0,0.00019237,2]
[422041681,1778524240000,-500.0,0.00019237,2]
[422041680,1778524240000,-500.0,0.00019237,2]
[422041682,1778524240000,-500.0,0.00019237,2]
[422041686,1778524240000,-500.0,0.00019237,2]
[422041674,1778524240000,-195.01086208,0.00019237,2]
[422041685,1778524240000,-500.0,0.00019237,2]
[422041688,1778524240000,-500.0,0.00019237,2]
[422041698,1778524240000,-500.0,0.00019237,2]
[422041691,1778524240000,-500.0,0.00019237,2]
[422041696,1778524240000,-500.0,0.00019237,2]
[422041694,1778524240000,-500.0,0.00019237,2]
[422041695,1778524240000,-500.0,0.00019237,2]
[422041699,1778524240000,-500.0,0.00019237,2]
[422041692,1778524240000,-500.0,0.00019237,2]
[422041693,1778524240000,-500.0,0.00019237,2]
[422041690,1778524240000,-500.0,0.00019237,2]
[422041687,1778524240000,-500.0,0.00019237,2]
[422041684,1778524240000,-500.0,0.00019237,2]
[422041683,1778524240000,-500.0,0.00019237,2]
[422041697,1778524240000,-500.0,0.00019237,2]
[422041722,1778524241000,-500.0,0.00019237,2]
[422041719,1778524241000,-500.0,0.00019237,2]
[422041724,1778524241000,-500.0,0.00019237,2]
[422041725,1778524241000,-500.0,0.00019237,2]
[422041720,1778524241000,-500.0,0.00019237,2]
[422041721,1778524241000,-500.0,0.00019237,2]
[422041723,1778524241000,-500.0,0.00019237,2]
[422041730,1778524241000,-500.0,0.00019237,2]
[422041735,1778524241000,-500.0,0.00019237,2]
[422041727,1778524241000,-500.0,0.00019237,2]
[422041728,1778524241000,-500.0,0.00019237,2]
[422041734,1778524241000,-500.0,0.00019237,2]
[422041729,1778524241000,-500.0,0.00019237,2]
[422041718,1778524241000,-500.0,0.00019237,2]
[422041726,1778524241000,-500.0,0.00019237,2]
[422041717,1778524241000,-275.64528567,0.00019237,2]
[422041703,1778524241000,-500.0,0.00019237,2]
[422041714,1778524241000,-500.0,0.00019237,2]
[422041702,1778524241000,-500.0,0.00019237,2]
[422041700,1778524241000,-500.0,0.00019237,2]
[422041705,1778524241000,-500.0,0.00019237,2]
[422041701,1778524241000,-500.0,0.00019237,2]
[422041708,1778524241000,-500.0,0.00019237,2]
[422041707,1778524241000,-500.0,0.00019237,2]
[422041716,1778524241000,-500.0,0.00019237,2]
[422041706,1778524241000,-500.0,0.00019237,2]
[422041710,1778524241000,-500.0,0.00019237,2]
[422041733,1778524241000,-500.0,0.00019237,2]
[422041709,1778524241000,-500.0,0.00019237,2]
[422041712,1778524241000,-500.0,0.00019237,2]
[422041711,1778524241000,-500.0,0.00019237,2]
[422041713,1778524241000,-500.0,0.00019237,2]
[422041704,1778524241000,-500.0,0.00019237,2]
[422041731,1778524241000,-500.0,0.00019237,2]
[422041715,1778524241000,-500.0,0.00019237,2]
[422041737,1778524241000,-500.0,0.00019237,2]
[422041766,1778524241000,-500.0,0.00019238,2]
[422041750,1778524241000,-500.0,0.00019237,2]
[422041752,1778524241000,-500.0,0.00019237,2]
[422041758,1778524241000,-500.0,0.00019238,2]
[422041759,1778524241000,-500.0,0.00019238,2]
[422041760,1778524241000,-500.0,0.00019238,2]
[422041749,1778524241000,-500.0,0.00019237,2]
[422041761,1778524241000,-500.0,0.00019238,2]
[422041763,1778524241000,-500.0,0.00019238,2]
[422041764,1778524241000,-500.0,0.00019238,2]
[422041769,1778524241000,-39949.92053555,0.00019238,2]
[422041762,1778524241000,-500.0,0.00019238,2]
[422041765,1778524241000,-500.0,0.00019238,2]
[422041768,1778524241000,-16599.64654716,0.00019238,2]
[422041767,1778524241000,-500.0,0.00019238,2]
[422041754,1778524241000,-500.0,0.00019237,2]
[422041755,1778524241000,-500.0,0.00019237,2]
[422041756,1778524241000,-500.0,0.00019237,2]
[422041736,1778524241000,-500.0,0.00019237,2]
[422041745,1778524241000,-477.56452856,0.00019237,2]
[422041739,1778524241000,-500.0,0.00019237,2]
[422041757,1778524241000,-500.0,0.00019238,2]
[422041746,1778524241000,-500.0,0.00019237,2]
[422041740,1778524241000,-500.0,0.00019237,2]
[422041741,1778524241000,-500.0,0.00019237,2]
[422041738,1778524241000,-500.0,0.00019237,2]
[422041743,1778524241000,-500.0,0.00019237,2]
[422041744,1778524241000,-500.0,0.00019237,2]
[422041748,1778524241000,-500.0,0.00019237,2]
[422041747,1778524241000,-500.0,0.00019237,2]
[422041751,1778524241000,-500.0,0.00019237,2]
[422041753,1778524241000,-500.0,0.00019237,2]
[422041742,1778524241000,-500.0,0.00019237,2]
[422041732,1778524241000,-500.0,0.00019237,2]
[422041774,1778524243000,-617.0,0.00019238,2]
[422041773,1778524243000,-2650.96523101,0.00019238,2]
[422041772,1778524243000,-661.03999474,0.00019238,2]
[422041779,1778525276000,250.0,0.00014,2]
[422041784,1778525431000,-16411.24710378,0.000162,2]
[422041781,1778525431000,-1200.0,0.00016199,2]
[422041782,1778525431000,-300.0,0.00016199,2]
[422041783,1778525431000,-250.0,0.000162,2]
[422041786,1778525431000,-250.0,0.00016375,2]
[422041785,1778525431000,-11086.82799414,0.000162,2]
[422041788,1778525431000,-163.33,0.00016438,2]
[422041790,1778525431000,-150.0,0.00016712,2]
[422041789,1778525431000,-248.0,0.00016438,2]
[422041791,1778525431000,-175.42,0.00016712,2]
[422041787,1778525431000,-250.1,0.00016438,2]
[422041813,1778525432000,-2500.0,0.00017819,2]
[422041811,1778525432000,-1680.0,0.00017796,2]
[422041812,1778525432000,-2500.0,0.00017819,2]
[422041819,1778525432000,-384.22620767,0.00017819,2]
[422041818,1778525432000,-397.31281132,0.00017819,2]
[422041816,1778525432000,-250.0,0.00017819,2]
[422041820,1778525432000,-158.95398683,0.0001782,2]
[422041822,1778525432000,-15633.5619,0.00018175,2]
[422041825,1778525432000,-186.4,0.0001841,2]
[422041814,1778525432000,-2500.0,0.00017819,2]
[422041824,1778525432000,-250.1,0.0001841,2]
[422041827,1778525432000,-186.4,0.00018495,2]
[422041826,1778525432000,-186.4,0.00018495,2]
[422041823,1778525432000,-203.26,0.00018254,2]
[422041829,1778525432000,-186.4,0.00018495,2]
[422041831,1778525432000,-186.4,0.00018495,2]
[422041833,1778525432000,-698.0,0.00018533,2]
[422041821,1778525432000,-253.26,0.00018173,2]
[422041815,1778525432000,-2500.0,0.00017819,2]
[422041809,1778525432000,-2560.92163169,0.00017728,2]
[422041808,1778525432000,-982.80761298,0.00017728,2]
[422041837,1778525432000,-152.0,0.000186,2]
[422041794,1778525432000,-4055.4,0.00017343,2]
[422041793,1778525432000,-253.26,0.00017308,2]
[422041792,1778525432000,-2000.0,0.00017279,2]
[422041796,1778525432000,-152.0,0.00017435,2]
[422041795,1778525432000,-550.0,0.00017434,2]
[422041800,1778525432000,-2073.57,0.00017642,2]
[422041797,1778525432000,-160.0,0.00017498,2]
[422041798,1778525432000,-208.15897961,0.00017498,2]
[422041799,1778525432000,-150.0,0.00017585,2]
[422041801,1778525432000,-500.0,0.00017686,2]
[422041802,1778525432000,-2060.25,0.00017728,2]
[422041803,1778525432000,-299.99,0.00017728,4]
[422041804,1778525432000,-150.99,0.00017728,2]
[422041807,1778525432000,-2539.76075533,0.00017728,2]
[422041805,1778525432000,-3478.96,0.00017728,2]
[422041806,1778525432000,-999.99,0.00017728,2]
[422041810,1778525432000,-253.26,0.00017741,2]
[422041839,1778525432000,-153.5821311,0.000186,2]
[422041817,1778525432000,-300.0,0.00017819,2]
[422041841,1778525432000,-275.65436385,0.000186,2]
[422041865,1778525432000,-408.67369255,0.00019136,2]
[422041868,1778525432000,-500.0,0.00019136,2]
[422041870,1778525432000,-500.0,0.00019136,2]
[422041872,1778525432000,-367.07553736,0.00019136,2]
[422041873,1778525432000,-500.0,0.00019136,2]
[422041869,1778525432000,-500.0,0.00019136,2]
[422041871,1778525432000,-397.75645286,0.00019136,2]
[422041874,1778525432000,-500.0,0.00019136,2]
[422041875,1778525432000,-500.0,0.00019136,2]
[422041877,1778525432000,-500.0,0.00019136,2]
[422041879,1778525432000,-500.0,0.00019136,2]
[422041876,1778525432000,-500.0,0.00019136,2]
[422041878,1778525432000,-500.0,0.00019136,2]
[422041880,1778525432000,-123071.72332329,0.00019137,2]
[422041882,1778525432000,-700.19088126,0.00019137,2]
[422041883,1778525432000,-3823.15770812,0.00019137,2]
[422041835,1778525432000,-500.0,0.00018548,2]
[422041863,1778525432000,-345.82668764,0.00019127,2]
[422041866,1778525432000,-500.0,0.00019136,2]
[422041884,1778525432000,-1167.93980651,0.00019137,2]
[422041867,1778525432000,-500.0,0.00019136,2]
[422041845,1778525432000,-443.05,0.00018687,2]
[422041843,1778525432000,-253.26,0.00018606,2]
[422041847,1778525432000,-200.0,0.0001869,2]
[422041848,1778525432000,-275.65436385,0.000187,2]
[422041862,1778525432000,-363.33850338,0.000191,2]
[422041850,1778525432000,-151.0,0.00018719,2]
[422041854,1778525432000,-2666.38,0.0001872,2]
[422041852,1778525432000,-500.0,0.00018719,2]
[422041855,1778525432000,-214.73073128,0.00018785,2]
[422041849,1778525432000,-500.0,0.00018719,2]
[422041856,1778525432000,-169.96,0.00018831,2]
[422041859,1778525432000,-253.26,0.00019039,2]
[422041858,1778525432000,-987.0,0.00019,2]
[422041860,1778525432000,-275.65436385,0.000191,2]
[422041881,1778525432000,-708.24423702,0.00019137,2]
[422041861,1778525432000,-1501.57314328,0.000191,2]
[422041857,1778525432000,-275.65436385,0.000189,2]
[422041864,1778525432000,-274.65573067,0.00019136,2]
[422041853,1778525432000,-617.29443379,0.00018719,2]
[422041886,1778525437000,-3448.25219006,0.00019137,2]
[422041887,1778525437000,-30101.03951096,0.00019137,2]
[422041888,1778525438000,-321847.4405969,0.00019137,2]
[422041898,1778525440000,-3549.4941997,0.00019137,2]
[422041896,1778525440000,-1025.49280924,0.00019137,2]
[422041897,1778525440000,-20807.02669326,0.00019137,2]
[422041895,1778525440000,-875.89626483,0.00019137,2]
[422041894,1778525440000,-2050.1,0.00019137,2]
[422041984,1778525443000,-299.35951352,0.00019137,2]
[422041987,1778525443000,-5730.97,0.00019137,2]
[422041985,1778525443000,-3312.377,0.00019137,2]
[422041986,1778525443000,-2589.57115365,0.00019137,2]
[422041991,1778525446000,-2869.14842839,0.00019137,2]
[422041990,1778525446000,-124671.98865135,0.00019137,2]
[422042001,1778526104000,5000.0,0.00027397,120]
[422042003,1778526332000,235922.66311984,0.000107,2]
[422042033,1778526632000,-284.07,0.00017243,2]
[422042032,1778526632000,-150.0,0.00017211,2]
[422042030,1778526632000,-150.0,0.00017112,2]
[422042028,1778526632000,-150.0,0.00017112,2]
[422042022,1778526632000,-150.00000001,0.00017112,2]
[422042019,1778526632000,-150.0,0.00017112,2]
[422042020,1778526632000,-150.0,0.00017112,2]
[422042047,1778526632000,-792.27,0.00017572,2]
[422042018,1778526632000,-150.49474749,0.00017112,2]
[422042015,1778526632000,-151.10219896,0.00017112,2]
[422042016,1778526632000,-150.0,0.00017112,2]
[422042024,1778526632000,-150.0,0.00017112,2]
[422042026,1778526632000,-150.0,0.00017112,2]
[422042014,1778526632000,-363.12317263,0.00016438,2]
[422042009,1778526632000,-300.0,0.00016109,2]
[422042011,1778526632000,-1200.0,0.00016109,2]
[422042010,1778526632000,-300.0,0.00016109,2]
[422042012,1778526632000,-1108.62641723,0.0001611,15]
[422042013,1778526632000,-18944.87614642,0.0001611,15]
[422042050,1778526632000,-150.0,0.00017588,2]
[422042017,1778526632000,-150.0,0.00017112,2]
[422042037,1778526632000,-203.26,0.00017288,2]
[422042053,1778526632000,-420.0,0.00017611,2]
[422042090,1778526632000,-645.55505471,0.0001814,2]
[422042088,1778526632000,-34623.54087262,0.0001814,2]
[422042084,1778526632000,-2000.0,0.00018133,2]
[422042086,1778526632000,-325.45,0.00018134,2]
[422042080,1778526632000,-150.0,0.00018063,2]
[422042082,1778526632000,-1512.90793464,0.00018121,2]
[422042076,1778526632000,-855.06629437,0.00018,2]
[422042078,1778526632000,-150.0,0.00018063,2]
[422042068,1778526632000,-168.27,0.00017759,2]
[422042064,1778526632000,-150.0,0.00017746,2]
[422042072,1778526632000,-150.0,0.00017905,2]
[422042062,1778526632000,-329.49494965,0.0001772,2]
[422042070,1778526632000,-150.0,0.00017848,2]
[422042059,1778526632000,-1680.0,0.00017699,2]
[422042042,1778526632000,-199.85,0.00017479,2]
[422042056,1778526632000,-200.0,0.00017666,2]
[422042035,1778526632000,-150.0,0.00017271,2]
[422042039,1778526632000,-150.0,0.00017429,2]
[422042074,1778526632000,-165.65,0.00017981,2]
[422042121,1778526638000,-2947.50193043,0.0001814,2]
[422042122,1778526638000,-1221.94,0.0001814,2]
[422042123,1778526638000,-1091.20433133,0.0001814,2]
[422042124,1778526638000,-2021.95617295,0.0001814,2]
[422042125,1778526638000,-2652.07742354,0.0001814,2]
[422042132,1778526640000,-459.67,0.0001814,2]
[422042131,1778526640000,-693.27386168,0.0001814,2]
[422042130,1778526640000,-721.44356646,0.0001814,2]
[422042145,1778526643000,-16610.64131564,0.0001814,2]
[422042144,1778526643000,-10081.27111997,0.0001814,2]
[422042147,1778526646000,-3975.17650426,0.0001814,2]
[422042167,1778527078000,250.0,0.00014,2]
[422042180,1778527832000,-279.1,0.00016438,2]
[422042176,1778527832000,-150.0,0.00016225,2]
[422042181,1778527832000,-150.0,0.00016585,2]
[422042179,1778527832000,-150.0,0.00016225,2]
[422042183,1778527832000,-260.36,0.00016622,2]
[422042177,1778527832000,-150.0,0.00016225,2]
[422042182,1778527832000,-166.93,0.00016601,2]
[422042185,1778527832000,-2000.0,0.00016662,2]
[422042184,1778527832000,-650.0,0.00016661,2]
[422042178,1778527832000,-150.0,0.00016225,2]
[422042174,1778527832000,-166.67,0.00015874,2]
[422042175,1778527832000,-300.0,0.00016,2]
[422042197,1778527832000,-16870.0529872,0.00017475,2]
[422042187,1778527832000,-488.99,0.00016894,2]
[422042194,1778527832000,-1773.11286451,0.00017379,2]
[422042191,1778527832000,-150.0,0.00017306,2]
[422042193,1778527832000,-2797.52572278,0.00017375,2]
[422042195,1778527832000,-260.36,0.00017453,2]
[422042196,1778527832000,-343.9499438,0.00017461,2]
[422042188,1778527832000,-150.0,0.00016946,2]
[422042189,1778527832000,-260.36,0.00017038,2]
[422042190,1778527832000,-150.0,0.00017112,2]
[422042186,1778527832000,-853.64,0.00016683,2]
[422042192,1778527832000,-235.52,0.00017318,2]
[422042221,1778527833000,-500.0,0.00018039,2]
[422042219,1778527833000,-500.0,0.00018039,2]
[422042218,1778527833000,-500.0,0.00018039,2]
[422042214,1778527833000,-150.0,0.00018027,2]
[422042217,1778527833000,-500.0,0.00018039,2]
[422042220,1778527833000,-500.0,0.00018039,2]
[422042222,1778527833000,-500.0,0.00018039,2]
[422042233,1778527833000,-500.0,0.00018039,2]
[422042225,1778527833000,-500.0,0.00018039,2]
[422042229,1778527833000,-294.91547196,0.00018039,2]
[422042231,1778527833000,-500.0,0.00018039,2]
[422042238,1778527833000,-409.70574832,0.00018039,2]
[422042216,1778527833000,-286.07158478,0.00018039,2]
[422042235,1778527833000,-500.0,0.00018039,2]
[422042237,1778527833000,-192.25901147,0.00018039,2]
[422042240,1778527833000,-500.0,0.00018039,2]
[422042226,1778527833000,-205.08452804,0.00018039,2]
[422042212,1778527833000,-1576.56478999,0.0001794,2]
[422042211,1778527833000,-2339.98959526,0.0001794,2]
[422042223,1778527833000,-500.0,0.00018039,2]
[422042242,1778527833000,-500.0,0.00018039,2]
[422042198,1778527833000,-3380.6202837,0.00017475,2]
[422042199,1778527833000,-9862.6726492,0.00017475,2]
[422042200,1778527833000,-115954.8790149,0.00017475,2]
[422042202,1778527833000,-500.0,0.00017479,2]
[422042206,1778527833000,-150.0,0.00017667,2]
[422042203,1778527833000,-214.82098671,0.00017534,2]
[422042215,1778527833000,-230.55112509,0.0001803,2]
[422042201,1778527833000,-1141.6000003,0.00017475,2]
[422042204,1778527833000,-166.67,0.00017545,2]
[422042208,1778527833000,-260.36,0.00017869,2]
[422042207,1778527833000,-7360.3802,0.0001784,2]
[422042205,1778527833000,-200.0,0.00017629,2]
[422042209,1778527833000,-1480.173,0.00017919,2]
[422042213,1778527833000,-350.0,0.00018,2]
[422042224,1778527833000,-500.0,0.00018039,2]
[422042210,1778527833000,-155.929,0.00017919,2]
[422042244,1778527833000,-500.0,0.00018039,2]
[422042277,1778527833000,-387.105,0.00018039,2]
[422042246,1778527833000,-500.0,0.00018039,2]
[422042267,1778527833000,-500.0,0.00018039,2]
[422042266,1778527833000,-387.9656781,0.00018039,2]
[422042268,1778527833000,-500.0,0.00018039,2]
[422042261,1778527833000,-500.0,0.00018039,2]
[422042271,1778527833000,-1136.24998725,0.0001804,2]
[422042276,1778527833000,-155950.19781069,0.0001804,2]
[422042274,1778527833000,-638.90471485,0.0001804,2]
[422042265,1778527833000,-51.54188475,0.00018039,2]
[422042273,1778527833000,-320.124,0.0001804,2]
[422042283,1778527833000,-483.96697237,0.00017475,2]
[422042278,1778527833000,-112.895,0.00018039,2]
[422042279,1778527833000,-1078.44037784,0.0001804,2]
[422042280,1778527833000,-1497.0,0.0001804,2]
[422042281,1778527833000,-584.79955105,0.00017475,2]
[422042282,1778527833000,-412.77728069,0.00017475,2]
[422042245,1778527833000,-500.0,0.00018039,2]
[422042275,1778527833000,-1077.85484221,0.0001804,2]
[422042269,1778527833000,-500.0,0.00018039,2]
[422042272,1778527833000,-346.276,0.0001804,2]
[422042264,1778527833000,-448.45811525,0.00018039,2]
[422042259,1778527833000,-500.0,0.00018039,2]
[422042270,1778527833000,-500.0,0.00018039,2]
[422042258,1778527833000,-500.0,0.00018039,2]
[422042249,1778527833000,-500.0,0.00018039,2]
[422042251,1778527833000,-500.0,0.00018039,2]
[422042247,1778527833000,-285.49358586,0.00018039,2]
[422042250,1778527833000,-500.0,0.00018039,2]
[422042252,1778527833000,-500.0,0.00018039,2]
[422042248,1778527833000,-500.0,0.00018039,2]
[422042256,1778527833000,-500.0,0.00018039,2]
[422042254,1778527833000,-500.0,0.00018039,2]
[422042262,1778527833000,-500.0,0.00018039,2]
[422042253,1778527833000,-500.0,0.00018039,2]
[422042257,1778527833000,-500.0,0.00018039,2]
[422042260,1778527833000,-500.0,0.00018039,2]
[422042263,1778527833000,-500.0,0.00018039,2]
[422042255,1778527833000,-500.0,0.00018039,2]
[422042304,1778527838000,-285.72080018,0.00017475,2]
[422042302,1778527838000,-3317.78757615,0.00017475,2]
[422042305,1778527838000,-623.80772165,0.00017475,2]
[422042306,1778527838000,-8107.59854159,0.0001804,2]
[422042303,1778527838000,-369.58247321,0.00017475,2]
[422042573,1778527841000,-2019.91513355,0.0001804,2]
[422042578,1778527841000,-1587.87614288,0.0001804,2]
[422042591,1778527841000,-151.0,0.0001814,2]
[422042584,1778527841000,-7611.10685099,0.0001804,2]
[422042585,1778527841000,-2199.24972671,0.0001804,2]
[422042587,1778527841000,-151.0,0.0001804,2]
[422042586,1778527841000,-1029428.06226737,0.0001804,2]
[422042588,1778527841000,-58903.17151749,0.0001814,2]
[422042590,1778527841000,-151.0,0.0001814,2]
[422042593,1778527841000,-258.194086,0.0001814,2]
[422042580,1778527841000,-1640.77250407,0.0001804,2]
[422042595,1778527841000,-151.0,0.0001814,2]
[422042592,1778527841000,-151.0,0.0001814,2]
[422042613,1778527841000,-151.0,0.000185,2]
[422042609,1778527841000,-151.0,0.000185,2]
[422042607,1778527841000,-151.0,0.000185,2]
[422042605,1778527841000,-151.0,0.000185,2]
[422042611,1778527841000,-152.0,0.000185,2]
[422042603,1778527841000,-151.0,0.000185,2]
[422042599,1778527841000,-279.1,0.0001841,2]
[422042589,1778527841000,-246.694028,0.0001814,2]
[422042601,1778527841000,-151.0,0.000185,2]
[422042597,1778527841000,-260.36,0.00018284,2]
[422042683,1778527842000,-500.0,0.00019015,2]
[422042702,1778527842000,-500.0,0.00019036,2]
[422042689,1778527842000,-500.0,0.00019015,2]
[422042704,1778527842000,-250.49009514,0.00019036,2]
[422042691,1778527842000,-500.0,0.00019015,2]
[422042680,1778527842000,-500.0,0.00019015,2]
[422042685,1778527842000,-500.0,0.00019015,2]
[422042696,1778527842000,-500.0,0.00019015,2]
[422042693,1778527842000,-500.0,0.00019015,2]
[422042687,1778527842000,-500.0,0.00019015,2]
[422042663,1778527842000,-2000.0,0.00018745,2]
[422042698,1778527842000,-500.0,0.00019015,2]
[422042700,1778527842000,-4467.45,0.00019029,2]
[422042716,1778527842000,-500.0,0.00019136,2]
[422042708,1778527842000,-500.0,0.00019036,2]
[422042710,1778527842000,-500.0,0.00019036,2]
[422042720,1778527842000,-207.8200117,0.00019137,2]
[422042676,1778527842000,-500.0,0.00019015,2]
[422042714,1778527842000,-500.0,0.00019036,2]
[422042722,1778527842000,-8237.73,0.00019151,2]
[422042726,1778527842000,-151.0,0.00019178,2]
[422042712,1778527842000,-500.0,0.00019036,2]
[422042718,1778527842000,-500.0,0.00019136,2]
[422042724,1778527842000,-839.06718577,0.00019178,2]
[422042728,1778527842000,-151.0,0.00019178,2]
[422042732,1778527842000,-151.0,0.00019178,2]
[422042730,1778527842000,-151.0,0.00019178,2]
[422042706,1778527842000,-500.0,0.00019036,2]
[422042675,1778527842000,-150.0,0.00019014,2]
[422042671,1778527842000,-375.0,0.000189,3]
[422042659,1778527842000,-151.0,0.000185,2]
[422042618,1778527842000,-151.0,0.000185,2]
[422042622,1778527842000,-151.0,0.000185,2]
[422042620,1778527842000,-152.0,0.000185,2]
[422042626,1778527842000,-152.0,0.000185,2]
[422042624,1778527842000,-151.0,0.000185,2]
[422042628,1778527842000,-151.0,0.000185,2]
[422042630,1778527842000,-152.0,0.000185,2]
[422042615,1778527842000,-152.0,0.000185,2]
[422042633,1778527842000,-151.0,0.000185,2]
[422042645,1778527842000,-151.00000001,0.000185,2]
[422042646,1778527842000,-152.0,0.000185,2]
[422042649,1778527842000,-152.0,0.000185,2]
[422042647,1778527842000,-151.0,0.000185,2]
[422042651,1778527842000,-151.0,0.000185,2]
[422042653,1778527842000,-152.0,0.000185,2]
[422042639,1778527842000,-500.0,0.000185,2]
[422042643,1778527842000,-152.0,0.000185,2]
[422042640,1778527842000,-152.0,0.000185,2]
[422042635,1778527842000,-152.0,0.000185,2]
[422042637,1778527842000,-151.0,0.000185,2]
[422042641,1778527842000,-151.0,0.000185,2]
[422042666,1778527842000,-1773.1128645,0.00018785,2]
[422042655,1778527842000,-151.0,0.000185,2]
[422042669,1778527842000,-452.0,0.00018806,5]
[422042673,1778527842000,-311.43300288,0.00018937,2]
[422042661,1778527842000,-275.65436387,0.000186,2]
[422042657,1778527842000,-151.0,0.000185,2]
[422042679,1778527842000,-500.0,0.00019015,2]
[422042744,1778527842000,-151.0,0.00019178,2]
[422042741,1778527842000,-151.0,0.00019178,2]
[422042737,1778527842000,-151.0,0.00019178,2]
[422042810,1778527842000,-765.24294627,0.0002,2]
[422042823,1778527842000,-218.763746,0.0002,2]
[422042821,1778527842000,-770.0,0.0002,2]
[422042825,1778527842000,-218.763746,0.0002,2]
[422042809,1778527842000,-52273.9013229,0.0002,2]
[422042827,1778527842000,-218.763746,0.0002,2]
[422042812,1778527842000,-243.0,0.0002,2]
[422042814,1778527842000,-154.0,0.0002,2]
[422042829,1778527842000,-218.763746,0.0002,2]
[422042831,1778527842000,-1627.0,0.0002,2]
[422042815,1778527842000,-151.0,0.0002,2]
[422042817,1778527842000,-151.0,0.0002,2]
[422042834,1778527842000,-151.0,0.0002,2]
[422042835,1778527842000,-151.0,0.0002,2]
[422042837,1778527842000,-224.0,0.0002,2]
[422042836,1778527842000,-151.0,0.0002,2]
[422042838,1778527842000,-1773.1128645,0.0002019,2]
[422042841,1778527842000,-1000.0,0.00020521,2]
[422042842,1778527842000,-2985.4,0.00020548,2]
[422042840,1778527842000,-1000.0,0.00020521,2]
[422042839,1778527842000,-279.1,0.00020381,2]
[422042844,1778527842000,-350.0,0.00020572,2]